fUSD/lending_fUSD_20260217
["ID","MTS","AMOUNT","RATE_DAILY","PERIOD"]
[405788465,1771309846691,-7845.411216,0.00012826,2]
[405788466,1771309846700,-915.21,0.00013698,2]
[405788467,1771309846710,-915.21,0.00013698,2]
[405788468,1771309846719,-915.21,0.00013698,2]
[405788469,1771309846728,-915.21,0.00013698,2]
[405788470,1771309846737,-915.21,0.00013698,2]
[405788471,1771309846746,-915.21,0.00013698,2]
[405788472,1771309846755,-915.21,0.00013698,2]
[405788473,1771309846765,-915.21,0.00013698,2]
[405788474,1771309846774,-737165.07200369,0.00018,2]
[405788475,1771309847868,9967.13052605,8.083e-05,2]
[405788476,1771309847895,10000.01,8.083e-05,2]
[405788477,1771309847920,10000.01,8.083e-05,2]
[405788478,1771309847945,10000.01,8.083e-05,2]
[405788479,1771309847972,10000.01,8.083e-05,2]
[405788480,1771309847997,10000.01,8.083e-05,2]
[405788481,1771309848023,10000.01,8.083e-05,2]
[405788482,1771309848049,10000.01,8.083e-05,2]
[405788483,1771309848075,10000.01,8.083e-05,2]
[405788484,1771309848101,10000.01,8.083e-05,2]
[405788485,1771309853003,-7060.15906371,8.083e-05,2]
[405788486,1771309853108,-10000.01,8.083e-05,2]
[405788487,1771309853233,-10000.01,8.083e-05,2]
[405788488,1771309853372,-10000.01,8.083e-05,2]
[405788489,1771309853949,-10000.01,8.083e-05,2]
[405788490,1771309854043,-10000.01,8.083e-05,2]
[405788491,1771309854064,-10000.01,8.083e-05,2]
[405788492,1771309854081,-10000.01,8.083e-05,2]
[405788493,1771309854110,-10000.01,8.083e-05,2]
[405788494,1771309854219,-10000.01,8.083e-05,2]
[405788499,1771310035506,384.65521734,7.9e-05,2]
[405788500,1771310035575,490.25006515,7.9e-05,2]
[405788501,1771310035647,525.44834775,7.9e-05,2]
[405788502,1771310035709,560.64663035,7.9e-05,2]
[405788503,1771310076113,-4393.532,7.922e-05,2]
[405788504,1771310076451,-373.791,7.922e-05,2]
[405788505,1771310091066,-300.0,7.982e-05,2]
[405788506,1771310106120,-4768.3948,7.983e-05,2]
[405788507,1771310106259,-463.2204,7.983e-05,2]
[405788508,1771310116042,1509.5615,7.983e-05,2]
[405788509,1771310166553,10000.01,7.983e-05,2]
[405788510,1771310166580,10000.01,7.983e-05,2]
[405788511,1771310166606,10000.01,7.983e-05,2]
[405788512,1771310166631,10000.01,7.983e-05,2]
[405788513,1771310166657,10000.01,7.983e-05,2]
[405788514,1771310166682,10000.01,7.983e-05,2]
[405788515,1771310166708,10000.01,7.983e-05,2]
[405788516,1771310500919,2052.61536871,0.000203,120]
[405788517,1771310517471,14458.93069403,0.0002,120]
[405788518,1771310540951,445.25421109,7.7e-05,3]
[405788519,1771310541012,578.11860608,7.7e-05,3]
[405788520,1771310541046,622.40673774,7.7e-05,3]
[405788521,1771310541142,666.69486941,7.7e-05,3]
[405788522,1771310722726,939.29061651,7.7e-05,3]
[405788523,1771310722788,1294.47139395,7.7e-05,3]
[405788524,1771310722840,1412.86498643,7.7e-05,3]
[405788525,1771310722903,1531.2585789,7.7e-05,3]
[405788537,1771310760818,10000.01,7.423e-05,2]
[405788538,1771310760841,10000.01,7.423e-05,2]
[405788539,1771310760864,780.28,7.423e-05,2]
[405788597,1771310876486,5000.01,7.475e-05,2]
[405788598,1771310876509,5000.01,7.475e-05,2]
[405788599,1771310876533,709.16,7.475e-05,2]
[405788600,1771310906936,378.29656687,7.6e-05,3]
[405788601,1771310906987,481.03002197,7.6e-05,3]
[405788602,1771310907042,515.274507,7.6e-05,3]
[405788603,1771310907097,549.51899203,7.6e-05,3]
[405788604,1771311026606,10000.01,7.29e-05,2]
[405788605,1771311026639,10000.01,7.29e-05,2]
[405788606,1771311026664,10000.01,7.29e-05,2]
[405788607,1771311026695,10000.01,7.29e-05,2]
[405788608,1771311027138,10000.01,7.29e-05,2]
[405788609,1771311027162,10000.01,7.29e-05,2]
[405788610,1771311027186,10000.01,7.29e-05,2]
[405788611,1771311027211,10000.01,7.29e-05,2]
[405788612,1771311027234,10000.01,7.29e-05,2]
[405788613,1771311027258,10000.01,7.29e-05,2]
[405788614,1771311027280,4290.85,7.29e-05,2]
[405788615,1771311027301,5000.01,7.29e-05,2]
[405788616,1771311027322,5000.01,7.29e-05,2]
[405788617,1771311027344,5000.01,7.29e-05,2]
[405788618,1771311027366,5000.01,7.29e-05,2]
[405788619,1771311027388,5000.01,7.29e-05,2]
[405788620,1771311027410,5000.01,7.29e-05,2]
[405788621,1771311027432,5000.01,7.29e-05,2]
[405788622,1771311027453,5000.01,7.29e-05,2]
[405788623,1771311027475,5000.01,7.29e-05,2]
[405788632,1771311031856,-53370.15577467,7.29e-05,2]
[405788763,1771311033857,-1132.94243206,7.29e-05,2]
[405788764,1771311033890,-5000.01,7.29e-05,2]
[405788765,1771311033991,-5000.01,7.29e-05,2]
[405788766,1771311036658,-5000.01,7.29e-05,2]
[405788767,1771311036799,-5000.01,7.29e-05,2]
[405788768,1771311037235,-5000.01,7.29e-05,2]
[405788769,1771311037249,-5000.01,7.29e-05,2]
[405788770,1771311037268,-5000.01,7.29e-05,2]
[405788771,1771311037293,-5000.01,7.29e-05,2]
[405788772,1771311037381,-5000.01,7.29e-05,2]
[405788773,1771311037522,-5000.01,7.29e-05,2]
[405788775,1771311037626,-5000.01,7.29e-05,2]
[405788777,1771311037739,-79782.96179327,7.29e-05,2]
[405788778,1771311037753,-1485.7611846,7.624e-05,2]
[405788779,1771311037763,-1852.42,7.624e-05,2]
[405788780,1771311037774,-250.0,7.702e-05,2]
[405788781,1771311037783,-1200.0,7.779e-05,2]
[405788782,1771311037794,-151.0,7.779e-05,2]
[405788783,1771311037804,-1000.0,7.78e-05,2]
[405788784,1771311037814,-300.0,7.78e-05,2]
[405788785,1771311037825,-150.0,7.78e-05,2]
[405788786,1771311037835,-337.92889973,7.781e-05,2]
[405788787,1771311037844,-1485.03346154,7.782e-05,2]
[405788788,1771311037855,-151.47260236,7.782e-05,2]
[405788789,1771311037865,-3500000.0,7.782e-05,2]
[405788790,1771311037874,-24799.7393,7.782e-05,2]
[405788791,1771311037884,-242.33,7.8e-05,2]
[405788792,1771311037894,-3514.826,7.824e-05,2]
[405788793,1771311037903,-299.032,7.824e-05,2]
[405788794,1771311037913,-349.65,7.883e-05,2]
[405788795,1771311037922,-5914.98,7.883e-05,2]
[405788796,1771311037932,-999.99,7.883e-05,2]
[405788797,1771311037942,-7136.18,7.883e-05,2]
[405788798,1771311037951,-43057.18,7.883e-05,2]
[405788799,1771311037962,-1542.1,7.883e-05,2]
[405788800,1771311037971,-150.99,7.883e-05,2]
[405788801,1771311037981,-9999.99,7.883e-05,2]
[405788802,1771311037992,-311.5,7.883e-05,2]
[405788803,1771311038002,-4999.99,7.883e-05,2]
[405788804,1771311038011,-29124.47,7.883e-05,2]
[405788805,1771311038021,-2984.7,7.883e-05,2]
[405788807,1771311038030,-499.99,7.883e-05,2]
[405788809,1771311038040,-9999.99,7.883e-05,2]
[405788810,1771311038050,-1473.32,7.883e-05,2]
[405788811,1771311038061,-299.99,7.883e-05,2]
[405788812,1771311038071,-9999.99,7.883e-05,2]
[405788813,1771311038080,-515.68,7.883e-05,2]
[405788814,1771311038090,-96057.45,7.883e-05,2]
[405788817,1771311038100,-150.99,7.883e-05,2]
[405788818,1771311038110,-14638.92,7.883e-05,2]
[405788821,1771311038120,-81423.96,7.883e-05,2]
[405788823,1771311038130,-8717.517405,7.945e-05,2]
[405788824,1771311038141,-9999.99,7.945e-05,2]
[405788826,1771311038150,-1184.93,7.945e-05,2]
[405788829,1771311038161,-3823.981012,7.945e-05,2]
[405788831,1771311038170,-1600.0,8.019e-05,2]
[405788833,1771311038179,-164.0,8.112e-05,2]
[405788835,1771311038189,-338.0,8.128e-05,2]
[405788836,1771311038198,-510.0,8.132e-05,2]
[405788838,1771311038207,-150.0,8.191e-05,2]
[405788840,1771311038217,-1405.0,8.195e-05,2]
[405788842,1771311038226,-269.0,8.2e-05,2]
[405788844,1771311038237,-160.0,8.217e-05,2]
[405788845,1771311038247,-166.421882,8.219e-05,2]
[405788846,1771311038257,-500.0,8.219e-05,2]
[405788847,1771311038267,-152.72,8.219e-05,2]
[405788848,1771311038276,-457.0,8.233e-05,2]
[405788849,1771311038286,-250.0,8.386e-05,2]
[405788850,1771311038296,-250.0,8.386e-05,2]
[405788851,1771311038307,-289.76203498,8.483e-05,2]
[405788852,1771311038317,-500.0,8.493e-05,2]
[405788853,1771311038327,-241119.69278619,8.509e-05,2]
[405788854,1771311038336,-1680.0,8.557e-05,2]
[405788856,1771311038346,-420.0,8.558e-05,2]
[405788858,1771311038355,-255.0,8.558e-05,2]
[405788860,1771311038364,-500.0,8.767e-05,2]
[405788862,1771311038374,-1600.0,9.021e-05,2]
[405788864,1771311038383,-500.0,9.041e-05,2]
[405788866,1771311038392,-152.72,9.041e-05,2]
[405788868,1771311038403,-500.0,9.315e-05,2]
[405788870,1771311038412,-1634.14,9.385e-05,2]
[405788872,1771311038422,-2351.0,9.413e-05,2]
[405788874,1771311038432,-300.0,9.414e-05,2]
[405788876,1771311038441,-433.0,9.414e-05,2]
[405788878,1771311038451,-500.0,9.589e-05,2]
[405788880,1771311038461,-2823.55,9.67e-05,2]
[405788881,1771311038471,-500.0,9.863e-05,2]
[405788882,1771311038480,-152.72,9.863e-05,2]
[405788883,1771311038490,-269.39,0.0001,2]
[405788884,1771311038500,-992.55377072,0.0001,2]
[405788885,1771311038510,-151.0,0.0001,2]
[405788886,1771311038520,-151.0,0.0001,2]
[405788887,1771311038530,-151.0,0.0001,2]
[405788888,1771311038540,-151.0,0.0001,2]
[405788889,1771311038550,-151.0,0.0001,2]
[405788890,1771311038560,-151.0,0.0001,2]
[405788891,1771311038571,-151.0,0.0001,2]
[405788892,1771311038581,-151.0,0.0001,2]
[405788893,1771311038591,-151.0,0.0001,2]
[405788894,1771311038601,-151.0,0.0001,2]
[405788895,1771311038611,-151.0,0.0001,2]
[405788896,1771311038621,-151.0,0.0001,2]
[405788897,1771311038631,-151.0,0.0001,2]
[405788898,1771311038641,-151.0,0.0001,2]
[405788899,1771311038651,-151.0,0.0001,2]
[405788900,1771311038665,-151.0,0.0001,2]
[405788901,1771311038675,-151.0,0.0001,2]
[405788902,1771311038685,-151.0,0.0001,2]
[405788903,1771311038695,-151.0,0.0001,2]
[405788904,1771311038704,-151.0,0.0001,2]
[405788905,1771311038714,-827.98134311,0.0001,2]
[405788906,1771311038724,-827.98134311,0.0001,2]
[405788907,1771311038734,-1600.0,0.00010024,2]
[405788908,1771311038746,-250.0,0.00010074,2]
[405788909,1771311038757,-500.0,0.00010137,2]
[405788910,1771311038768,-269.39,0.00010274,2]
[405788911,1771311038778,-3292.0,0.00010354,2]
[405788912,1771311038791,-163.0,0.00010355,2]
[405788913,1771311038801,-500.0,0.00010411,2]
[405788914,1771311038812,-173.85722099,0.00010483,2]
[405788915,1771311038823,-269.39,0.00010548,2]
[405788916,1771311038832,-504.47430688,0.00010685,2]
[405788917,1771311038842,-152.72,0.00010685,2]
[405788918,1771311038852,-500.0,0.00010712,2]
[405788919,1771311038861,-237.28842339,0.00010712,2]
[405788920,1771311038871,-500.0,0.00010712,2]
[405788921,1771311038881,-500.0,0.00010712,2]
[405788922,1771311038891,-500.0,0.00010712,2]
[405788923,1771311038901,-500.0,0.00010712,2]
[405788924,1771311038911,-500.0,0.00010712,2]
[405788925,1771311038921,-500.0,0.00010712,2]
[405788926,1771311038931,-500.0,0.00010712,2]
[405788927,1771311038941,-150.31509327,0.00010712,2]
[405788928,1771311038951,-500.0,0.00010712,2]
[405788929,1771311038962,-500.0,0.00010712,2]
[405788930,1771311038972,-596.0,0.00010712,2]
[405788931,1771311038982,-150.0,0.00010712,2]
[405788932,1771311038991,-500.0,0.00010712,2]
[405788933,1771311039001,-150.0,0.00010712,2]
[405788934,1771311039011,-500.0,0.00010712,2]
[405788935,1771311039020,-150.0,0.00010712,2]
[405788936,1771311039030,-150.0,0.00010712,2]
[405788937,1771311039040,-500.0,0.00010712,2]
[405788938,1771311039050,-500.0,0.00010712,2]
[405788939,1771311039060,-500.0,0.00010712,2]
[405788940,1771311039070,-500.0,0.00010712,2]
[405788941,1771311039080,-500.0,0.00010712,2]
[405788942,1771311039090,-500.0,0.00010712,2]
[405788943,1771311039099,-872.0,0.00010712,2]
[405788944,1771311039108,-150.0,0.00010712,2]
[405788945,1771311039118,-4242.0,0.00010712,2]
[405788946,1771311039129,-500.0,0.00010712,2]
[405788947,1771311039139,-500.0,0.00010712,2]
[405788948,1771311039149,-500.0,0.00010712,2]
[405788949,1771311039159,-150.0,0.00010712,2]
[405788950,1771311039169,-446.0,0.00010712,2]
[405788951,1771311039179,-150.0,0.00010712,2]
[405788952,1771311039189,-500.0,0.00010712,2]
[405788953,1771311039199,-150.0,0.00010712,2]
[405788954,1771311039208,-500.0,0.00010712,2]
[405788955,1771311039218,-500.0,0.00010712,2]
[405788956,1771311039228,-150.0,0.00010712,2]
[405788957,1771311039238,-150.0,0.00010712,2]
[405788958,1771311039247,-500.0,0.00010712,2]
[405788959,1771311039258,-500.0,0.00010712,2]
[405788960,1771311039268,-150.0,0.00010712,2]
[405788961,1771311039277,-500.0,0.00010712,2]
[405788962,1771311039287,-500.0,0.00010767,2]
[405788963,1771311039297,-500.0,0.00010767,2]
[405788964,1771311039306,-500.0,0.00010767,2]
[405788965,1771311039317,-500.0,0.00010767,2]
[405788966,1771311039327,-500.0,0.00010767,2]
[405788967,1771311039337,-500.0,0.00010767,2]
[405788968,1771311039348,-500.0,0.00010767,2]
[405788969,1771311039358,-500.0,0.00010767,2]
[405788970,1771311039367,-500.0,0.00010767,2]
[405788971,1771311039377,-500.0,0.00010767,2]
[405788972,1771311039387,-596.0,0.00010767,2]
[405788973,1771311039396,-150.0,0.00010767,2]
[405788974,1771311039407,-500.0,0.00010767,2]
[405788975,1771311039417,-150.0,0.00010767,2]
[405788976,1771311039427,-500.0,0.00010767,2]
[405788977,1771311039436,-150.37957529,0.00010767,2]
[405788978,1771311039445,-151.2254874,0.00010767,2]
[405788979,1771311039454,-500.0,0.00010767,2]
[405788980,1771311039464,-500.0,0.00010767,2]
[405788981,1771311039475,-500.0,0.00010767,2]
[405788982,1771311039485,-500.0,0.00010767,2]
[405788983,1771311039495,-502.16866536,0.00010767,2]
[405788984,1771311039504,-500.0,0.00010767,2]
[405788985,1771311039514,-872.0,0.00010767,2]
[405788986,1771311039524,-150.07216309,0.00010767,2]
[405788987,1771311039534,-4242.0,0.00010767,2]
[405788988,1771311039544,-500.0,0.00010767,2]
[405788989,1771311039554,-500.0,0.00010767,2]
[405788990,1771311039563,-500.0,0.00010767,2]
[405788991,1771311039573,-446.0,0.00010767,2]
[405788992,1771311039583,-500.0,0.00010767,2]
[405788993,1771311039593,-150.0,0.00010767,2]
[405788994,1771311039603,-500.87477363,0.00010767,2]
[405788995,1771311039613,-500.0,0.00010767,2]
[405788996,1771311039622,-150.0,0.00010767,2]
[405788997,1771311039631,-150.0,0.00010767,2]
[405788998,1771311039641,-500.0,0.00010767,2]
[405788999,1771311039651,-649.65624143,0.00010767,2]
[405789000,1771311039661,-205.12968692,0.00010767,2]
[405789001,1771311039670,-500.0,0.00010767,2]
[405789002,1771311039680,-220.15883999,0.00010822,2]
[405789003,1771311039690,-500.0,0.00010822,2]
[405789004,1771311039700,-500.0,0.00010822,2]
[405789005,1771311039709,-500.0,0.00010822,2]
[405789006,1771311039719,-500.0,0.00010822,2]
[405789007,1771311039729,-154.49885719,0.00010822,2]
[405789008,1771311039738,-500.0,0.00010822,2]
[405789009,1771311039753,-500.0,0.00010822,2]
[405789010,1771311039763,-500.0,0.00010822,2]
[405789011,1771311039773,-616.5683879,0.00010822,2]
[405789012,1771311039783,-596.0,0.00010822,2]
[405789013,1771311039793,-201.09695119,0.00010822,2]
[405789014,1771311039803,-500.0,0.00010822,2]
[405789015,1771311039813,-150.0,0.00010822,2]
[405789016,1771311039824,-500.0,0.00010822,2]
[405789017,1771311039834,-500.0,0.00010822,2]
[405789018,1771311039844,-500.0,0.00010822,2]
[405789019,1771311039854,-500.0,0.00010822,2]
[405789020,1771311039865,-500.0,0.00010822,2]
[405789021,1771311039874,-500.0,0.00010822,2]
[405789022,1771311039884,-872.0,0.00010822,2]
[405789023,1771311039894,-4242.0,0.00010822,2]
[405789024,1771311039905,-505.10095498,0.00010822,2]
[405789025,1771311039915,-500.0,0.00010822,2]
[405789026,1771311039925,-500.0,0.00010822,2]
[405789027,1771311039934,-446.0,0.00010822,2]
[405789028,1771311039944,-500.0,0.00010822,2]
[405789029,1771311039954,-242.84628954,0.00010822,2]
[405789030,1771311039965,-152.12850518,0.00010822,2]
[405789031,1771311039975,-200.36674187,0.00010822,2]
[405789032,1771311039986,-200.18645604,0.00010822,2]
[405789033,1771311039996,-500.0,0.00010822,2]
[405789034,1771311040006,-500.0,0.00010822,2]
[405789035,1771311040016,-500.0,0.00010876,2]
[405789036,1771311040025,-500.0,0.00010876,2]
[405789037,1771311040036,-187.36614029,0.00010876,2]
[405789038,1771311040047,-500.0,0.00010876,2]
[405789039,1771311040066,-500.0,0.00010876,2]
[405789040,1771311040085,-500.0,0.00010876,2]
[405789041,1771311040095,-500.0,0.00010876,2]
[405789042,1771311040105,-596.0,0.00010876,2]
[405789043,1771311040114,-500.0,0.00010876,2]
[405789044,1771311040124,-150.0,0.00010876,2]
[405789045,1771311040134,-500.0,0.00010876,2]
[405789046,1771311040144,-178.36591542,0.00010876,2]
[405789047,1771311040153,-500.0,0.00010876,2]
[405789048,1771311040163,-500.0,0.00010876,2]
[405789049,1771311040172,-500.0,0.00010876,2]
[405789050,1771311040182,-500.0,0.00010876,2]
[405789051,1771311040191,-872.0,0.00010876,2]
[405789052,1771311040202,-4242.0,0.00010876,2]
[405789053,1771311040211,-500.0,0.00010876,2]
[405789054,1771311040221,-500.0,0.00010876,2]
[405789055,1771311040232,-446.0,0.00010876,2]
[405789056,1771311040242,-500.0,0.00010876,2]
[405789057,1771311040252,-500.0,0.00010876,2]
[405789058,1771311040262,-500.0,0.00010876,2]
[405789059,1771311040271,-500.0,0.00010931,2]
[405789060,1771311040281,-500.0,0.00010931,2]
[405789061,1771311040291,-500.0,0.00010931,2]
[405789062,1771311040302,-500.0,0.00010931,2]
[405789063,1771311040311,-500.0,0.00010931,2]
[405789064,1771311040321,-500.0,0.00010931,2]
[405789065,1771311040330,-596.0,0.00010931,2]
[405789066,1771311040339,-500.0,0.00010931,2]
[405789067,1771311040349,-250.53819001,0.00010931,2]
[405789068,1771311040358,-500.0,0.00010931,2]
[405789069,1771311040368,-500.0,0.00010931,2]
[405789070,1771311040377,-500.0,0.00010931,2]
[405789071,1771311040387,-329.95129651,0.00010931,2]
[405789072,1771311040396,-510.76125773,0.00010931,2]
[405789073,1771311040406,-872.0,0.00010931,2]
[405789074,1771311040415,-4242.0,0.00010931,2]
[405789075,1771311040424,-500.0,0.00010931,2]
[405789076,1771311040434,-500.0,0.00010931,2]
[405789077,1771311040443,-446.0,0.00010931,2]
[405789078,1771311040452,-500.0,0.00010931,2]
[405789079,1771311040462,-500.0,0.00010931,2]
[405789080,1771311040471,-500.0,0.00010931,2]
[405789081,1771311040481,-2145.41,0.00010959,2]
[405789082,1771311040490,-500.0,0.00010973,2]
[405789083,1771311040500,-502.12798245,0.00010973,2]
[405789084,1771311040510,-500.0,0.00010973,2]
[405789085,1771311040522,-500.0,0.00010973,2]
[405789086,1771311040532,-500.0,0.00010986,2]
[405789087,1771311040542,-500.0,0.00010986,2]
[405789088,1771311040552,-500.0,0.00010986,2]
[405789089,1771311040562,-500.0,0.00010986,2]
[405789090,1771311040572,-500.0,0.00010986,2]
[405789091,1771311040582,-500.0,0.00010986,2]
[405789092,1771311040592,-596.0,0.00010986,2]
[405789093,1771311040601,-500.33776257,0.00010986,2]
[405789094,1771311040612,-153.2248447,0.00010986,2]
[405789095,1771311040622,-500.0,0.00010986,2]
[405789097,1771311040632,-500.0,0.00010986,2]
[405789098,1771311040642,-872.0,0.00010986,2]
[405789099,1771311040651,-4242.0,0.00010986,2]
[405789100,1771311040661,-500.0,0.00010986,2]
[405789101,1771311040672,-500.0,0.00010986,2]
[405789102,1771311040683,-446.0,0.00010986,2]
[405789103,1771311040694,-500.0,0.00010986,2]
[405789104,1771311040703,-500.0,0.00010986,2]
[405789105,1771311040713,-500.0,0.00010986,2]
[405789106,1771311040723,-1600.0,0.00011026,2]
[405789107,1771311040732,-500.0,0.00011041,2]
[405789108,1771311040743,-500.0,0.00011041,2]
[405789109,1771311040756,-500.0,0.00011041,2]
[405789110,1771311040766,-500.0,0.00011041,2]
[405789111,1771311040776,-500.0,0.00011041,2]
[405789112,1771311040787,-500.0,0.00011041,2]
[405789113,1771311040797,-596.0,0.00011041,2]
[405789114,1771311040807,-475.49905426,0.00011041,2]
[405789115,1771311040818,-500.0,0.00011041,2]
[405789116,1771311040828,-872.0,0.00011041,2]
[405789117,1771311040838,-4242.0,0.00011041,2]
[405789118,1771311040848,-500.0,0.00011041,2]
[405789119,1771311040858,-621.12228144,0.00011041,2]
[405789120,1771311040867,-446.0,0.00011041,2]
[405789121,1771311040877,-500.0,0.00011041,2]
[405789122,1771311040888,-382.17209928,0.00011041,2]
[405789123,1771311040897,-500.0,0.00011041,2]
[405789124,1771311040907,-500.0,0.00011096,2]
[405789125,1771311040917,-500.0,0.00011096,2]
[405789126,1771311040927,-500.0,0.00011096,2]
[405789127,1771311040937,-500.0,0.00011096,2]
[405789128,1771311040947,-500.0,0.00011096,2]
[405789129,1771311040957,-500.0,0.00011096,2]
[405789130,1771311040967,-596.0,0.00011096,2]
[405789131,1771311040977,-500.0,0.00011096,2]
[405789132,1771311040987,-872.0,0.00011096,2]
[405789133,1771311040998,-4242.0,0.00011096,2]
[405789134,1771311041013,-500.0,0.00011096,2]
[405789135,1771311041023,-446.0,0.00011096,2]
[405789136,1771311041033,-500.0,0.00011096,2]
[405789137,1771311041043,-500.0,0.00011096,2]
[405789138,1771311041052,-11808.51754568,0.00011099,2]
[405789139,1771311041062,-11808.51754568,0.00011099,2]
[405789140,1771311041071,-11808.51754568,0.00011099,2]
[405789141,1771311041081,-11808.51754568,0.00011099,2]
[405789142,1771311041091,-3826.55068931,0.00011099,2]
[405789143,1771311041101,-3826.5506893,0.00011099,2]
[405789144,1771311041111,-3826.5506893,0.00011099,2]
[405789145,1771311041121,-3826.5506893,0.00011099,2]
[405789146,1771311041131,-500.0,0.0001115,2]
[405789147,1771311041143,-500.0,0.0001115,2]
[405789148,1771311041161,-500.0,0.0001115,2]
[405789149,1771311041177,-500.0,0.0001115,2]
[405789150,1771311041187,-500.0,0.0001115,2]
[405789151,1771311041197,-596.0,0.0001115,2]
[405789152,1771311041207,-500.0,0.0001115,2]
[405789153,1771311041219,-500.0,0.0001115,2]
[405789154,1771311041228,-872.0,0.0001115,2]
[405789155,1771311041238,-4242.0,0.0001115,2]
[405789156,1771311041247,-446.0,0.0001115,2]
[405789157,1771311041257,-500.0,0.0001115,2]
[405789158,1771311041267,-500.0,0.0001115,2]
[405789159,1771311041276,-500.0,0.0001115,2]
[405789160,1771311041286,-500.0,0.00011205,2]
[405789161,1771311041301,-155.81655615,0.00011205,2]
[405789162,1771311041311,-153.57378643,0.00011205,2]
[405789163,1771311041321,-500.0,0.00011205,2]
[405789164,1771311041331,-500.0,0.00011205,2]
[405789165,1771311041341,-596.0,0.00011205,2]
[405789166,1771311041351,-500.0,0.00011205,2]
[405789167,1771311041362,-500.0,0.00011205,2]
[405789168,1771311041371,-872.0,0.00011205,2]
[405789169,1771311041381,-4242.0,0.00011205,2]
[405789170,1771311041391,-446.0,0.00011205,2]
[405789171,1771311041401,-500.0,0.00011205,2]
[405789172,1771311041411,-500.0,0.00011205,2]
[405789173,1771311041421,-500.0,0.00011205,2]
[405789174,1771311041430,-500.0,0.0001126,2]
[405789175,1771311041440,-500.0,0.0001126,2]
[405789176,1771311041451,-500.0,0.0001126,2]
[405789177,1771311041461,-596.0,0.0001126,2]
[405789178,1771311041470,-500.0,0.0001126,2]
[405789179,1771311041480,-500.0,0.0001126,2]
[405789180,1771311041490,-872.0,0.0001126,2]
[405789181,1771311041500,-4242.0,0.0001126,2]
[405789182,1771311041510,-446.0,0.0001126,2]
[405789183,1771311041519,-500.0,0.0001126,2]
[405789184,1771311041530,-500.0,0.0001126,2]
[405789185,1771311041540,-500.0,0.0001126,2]
[405789186,1771311041550,-11808.51754568,0.00011313,2]
[405789187,1771311041561,-500.0,0.00011315,2]
[405789188,1771311041571,-500.0,0.00011315,2]
[405789189,1771311041583,-361.9355564,0.00011315,2]
[405789190,1771311041594,-596.0,0.00011315,2]
[405789191,1771311041605,-500.0,0.00011315,2]
[405789192,1771311041616,-500.0,0.00011315,2]
[405789193,1771311041627,-872.0,0.00011315,2]
[405789194,1771311041637,-4242.0,0.00011315,2]
[405789195,1771311041930,-446.0,0.00011315,2]
[405789196,1771311041942,-500.0,0.00011315,2]
[405789197,1771311041957,-500.0,0.00011315,2]
[405789198,1771311041968,-163.51122534,0.00011315,2]
[405789199,1771311041978,-2020.504387,0.00011322,2]
[405789200,1771311041989,-9152.979751,0.00011322,2]
[405789201,1771311041999,-3826.5506893,0.00011369,2]
[405789202,1771311042010,-224.65460803,0.0001137,2]
[405789203,1771311042020,-500.0,0.0001137,2]
[405789204,1771311042030,-596.0,0.0001137,2]
[405789205,1771311042041,-500.0,0.0001137,2]
[405789206,1771311042051,-500.0,0.0001137,2]
[405789207,1771311042062,-872.0,0.0001137,2]